bitfinex/quotes_ETHUSD_20240530
["timestamp","ask_amount","ask_price","bid_price","bid_amount"]
[1717031802930,2.65369,3768.4,3767.2,1.29789222]
[1717031803310,2.60369,3768.4,3767.2,1.29789222]
[1717031803729,2.65299,3769.4,3768.1,2.65382]
[1717031803930,2.918289,3769.4,3768.2,1.56327422]
[1717031804237,2.6526,3769.9,3768.3,2.65364]
[1717031804429,2.6529,3769.5,3768.4,1.29789222]
[1717031805085,2.6529,3769.5,3768.5,2.65355]
[1717031805255,2.6529,3769.5,3768.6,1.29789222]
[1717031806254,2.4462,3769.8,3768.6,1.29789222]
[1717031806462,2.4462,3769.8,3768.7,0.39514422]
[1717031806661,2.4462,3769.8,3768.8,1.29789222]
[1717031808685,2.6522,3770.5,3768.9,2.65328]
[1717031808865,5.0525,3770.5,3769.1,2.65308]
[1717031809046,5.0525,3770.5,3769.3,2.653]
[1717031809247,5.0525,3770.5,3769.4,1.29789222]
[1717031812445,5.0525,3770.5,3769.5,2.65286]
[1717031812639,5.0525,3770.5,3769.6,1.29789222]
[1717031812837,5.0525,3770.5,3769.7,0.69507522]
[1717031813042,5.0525,3770.5,3769.7,1.99296744]
[1717031813341,5.0525,3770.5,3769.8,1.29789222]
[1717031813542,2.6522,3770.5,3769.8,1.29789222]
[1717031813969,2.65188,3771.0,3769.8,1.29789222]
[1717031814175,2.65188,3771.0,3769.8,1.76247496]
[1717031814803,2.65152,3771.5,3769.9,1.29789222]
[1717031814966,2.65152,3771.5,3770.4,2.65221]
[1717031815159,2.65152,3771.5,3770.5,1.29789222]
[1717031815366,3.146952,3771.5,3770.5,1.29789222]
[1717031815962,2.65175,3771.1,3769.9,2.65258]
[1717031816161,2.65175,3771.1,3770.0,4.29789222]
[1717031816874,3.146892,3771.5,3770.1,2.65241]
[1717031817103,3.146892,3771.5,3770.3,2.65227]
[1717031817322,3.146892,3771.5,3770.4,1.29789222]
[1717031819027,2.65146,3771.5,3770.4,1.29789222]
[1717031819727,2.65146,3771.5,3770.5,2.65216]
[1717031819881,2.65146,3771.5,3770.6,1.29789222]
[1717031821531,2.65146,3771.5,3770.7,2.65201]
[1717031821687,2.65146,3771.5,3770.7,3.94990222]
[1717031822194,2.65146,3771.5,3770.7,4.34489244]
[1717031822394,0.02380461,3771.4,3770.7,4.34489244]
[1717031822594,2.65118,3771.9,3770.7,3.94990222]
[1717031822807,0.02449588,3771.8,3770.7,3.94990222]
[1717031824219,0.02449588,3771.8,3770.8,1.29789222]
[1717031824535,0.02449588,3771.8,3770.9,2.65182]
[1717031824829,2.65091,3772.3,3771.1,2.65174]
[1717031825031,2.65112,3772.0,3771.1,3.94963222]
[1717031825384,2.65128,3771.8,3770.7,2.65202]
[1717031825702,2.65128,3771.8,3770.8,1.29789222]
[1717031826098,2.2622,3771.5,3770.6,7.14456594]
[1717031826398,2.65179,3771.1,3770.1,7.14456594]
[1717031826784,2.65198,3770.8,3770.1,7.14456594]
[1717031827299,0.02448845,3770.7,3770.1,7.14456594]
[1717031827501,0.02448845,3770.7,3769.7,2.6527]
[1717031827701,2.65198,3770.8,3769.8,2.27761881]
[1717031827910,2.65198,3770.8,3769.8,5.27761881]
[1717031828116,2.65221,3770.5,3769.6,7.14456594]
[1717031828286,2.65221,3770.5,3769.6,8.44245816]
[1717031830230,2.65245,3770.1,3769.6,7.14456594]
[1717031830444,2.65245,3770.1,3768.9,2.65328]
[1717031830750,0.02423952,3770.0,3769.0,1.29789222]
[1717031830903,0.02423952,3770.0,3769.1,0.39511722]
[1717031831229,0.02423952,3770.0,3769.1,1.69300944]
[1717031834526,2.6526,3769.9,3769.1,1.69300944]
[1717031834833,0.02403882,3769.8,3769.1,1.29789222]
[1717031835331,0.02403882,3769.8,3769.0,3.0]
[1717031836106,0.02403882,3769.8,3769.1,1.29789222]
[1717031838112,2.65274,3769.7,3768.7,7.14456594]
[1717031838322,2.92041788,3769.7,3768.8,1.29789222]
[1717031839247,2.65299,3769.4,3768.7,7.14456594]
[1717031839405,2.6532,3769.1,3767.9,7.14456594]
[1717031839737,2.6532,3769.1,3767.7,2.65411]
[1717031839738,2.6532,3769.1,3768.0,1.29789222]
[1717031839942,2.28,3769.6,3768.0,1.29789222]
[1717031839943,2.65341,3768.8,3768.0,1.29789222]
[1717031840251,0.02361495,3768.7,3768.0,1.29789222]
[1717031841214,0.02361495,3768.7,3768.0,1.69309244]
[1717031841545,2.65341,3768.8,3768.1,1.29789222]
[1717031843751,2.3944,3769.2,3766.8,0.41571426]
[1717031843920,4.24229222,3769.1,3766.9,1.29789222]
[1717031844263,3.0,3769.0,3766.9,1.29789222]
[1717031844558,3.69229222,3769.1,3766.9,1.29789222]
[1717031844559,2.65339,3768.8,3767.4,2.6543]
[1717031844726,2.65339,3768.8,3767.5,1.29789222]
[1717031844927,2.65339,3768.8,3767.6,0.39521922]
[1717031845137,2.65339,3768.8,3767.7,1.29789222]
[1717031848315,2.65339,3768.8,3767.7,3.95197222]
[1717031848513,2.65339,3768.8,3767.9,2.65395]
[1717031848752,2.65339,3768.8,3768.0,4.29789222]
[1717031849055,2.65339,3768.8,3768.1,0.99518422]
[1717031849213,2.65339,3768.8,3768.1,2.29307644]
[1717031849416,2.3944,3769.1,3768.1,2.29307644]
[1717031850018,2.3944,3769.1,3768.2,1.29789222]
[1717031850316,2.65311,3769.2,3768.2,3.95162222]
[1717031850560,2.65311,3769.2,3768.3,0.79468064]
[1717031850763,2.65311,3769.2,3768.4,1.29789222]
[1717031854762,2.65276,3769.7,3768.5,2.65352]
[1717031854951,2.65276,3769.7,3768.6,1.29789222]
[1717031856119,2.65276,3769.7,3768.7,2.65338]
[1717031856424,2.65276,3769.7,3768.8,2.17871944]
[1717031857738,3.22658321,3770.1,3769.0,2.65321]
[1717031858051,2.65247,3770.1,3769.0,3.95110222]
[1717031860089,2.65247,3770.1,3769.2,2.65304]
[1717031860380,2.65247,3770.1,3769.3,0.39509322]
[1717031869024,2.3577,3770.2,3768.8,3.53414722]
[1717031869025,2.65269,3769.8,3768.8,3.53414722]
[1717031869182,2.65269,3769.8,3768.8,4.83203944]
[1717031869342,2.3577,3770.2,3768.8,4.83203944]
[1717031869343,2.65289,3769.5,3768.8,0.88082722]
[1717031869544,2.65289,3769.5,3768.4,2.6536]
[1717031869780,2.65289,3769.5,3768.4,3.95149222]
[1717031873763,3.22679361,3769.9,3768.6,2.65343]
[1717031873965,2.65263,3769.9,3768.7,1.29789222]
[1717031874182,2.65263,3769.9,3768.8,0.39513222]
[1717031875898,2.65263,3769.9,3768.8,1.69302444]
[1717031877982,2.65263,3769.9,3768.9,2.65326]
[1717031880692,2.65263,3769.9,3768.8,1.69302444]
[1717031881908,2.65282,3769.6,3768.8,0.39513222]
[1717031882187,2.65295,3769.4,3768.5,2.65352]
[1717031882381,2.65295,3769.4,3768.5,3.95141222]
[1717031882587,2.65295,3769.4,3768.3,7.14456594]
[1717031882588,2.65318,3769.1,3768.3,7.14456594]
[1717031882830,2.65318,3769.1,3768.1,2.65381]
[1717031883013,2.65318,3769.1,3768.2,1.56327322]
[1717031883327,2.65318,3769.1,3768.2,0.265381]
[1717031884986,2.65318,3769.1,3768.1,2.65381]
[1717031884987,5.1131,3768.7,3767.7,9.79867594]
[1717031885367,5.1131,3768.7,3767.6,0.39521922]
[1717031885368,2.65368,3768.4,3767.6,0.39521922]
[1717031889729,2.65368,3768.4,3767.6,1.69311144]
[1717031890431,2.4596,3768.7,3767.7,1.29789222]
[1717031890591,2.4596,3768.7,3767.8,3.08873614]
[1717031890787,2.4596,3768.7,3768.0,2.65391]
[1717031891018,1.93,3769.8,3768.2,2.65376]
[1717031891019,2.2707,3769.1,3768.2,2.65376]
[1717031891188,2.2707,3769.1,3768.2,3.95165222]
[1717031893294,2.2707,3769.1,3768.3,1.29789222]
[1717031893495,2.6531,3769.2,3768.4,0.39516522]
[1717031893730,2.6531,3769.2,3768.4,1.69305744]
[1717031895231,2.2959,3769.5,3768.5,3.95143222]
[1717031895385,2.65252,3770.0,3768.8,2.65332]
[1717031895593,3.22665315,3770.0,3768.9,1.29789222]
[1717031895793,3.22665315,3770.0,3769.0,0.39512122]
[1717031896089,2.65252,3770.0,3769.1,1.29789222]
[1717031898044,2.65225,3770.4,3769.1,3.95097222]
[1717031898244,2.65225,3770.4,3769.3,2.65301]
[1717031898457,2.65225,3770.4,3769.4,1.29789222]
[1717031901040,2.65196,3770.8,3769.5,2.65285]
[1717031901249,0.57401109,3770.9,3769.9,2.65257]
[1717031901398,2.0,3771.0,3770.0,1.56314922]
[1717031902095,2.0,3771.0,3770.3,2.6523]
[1717031902301,2.0,3771.0,3770.4,1.29789222]
[1717031903401,2.0,3771.0,3770.0,0.265257]
[1717031903697,2.0,3771.0,3769.8,2.65264]
[1717031903698,2.6519,3770.9,3769.8,2.65264]
[1717031903903,2.0,3771.0,3770.0,2.65247]
[1717031904161,2.0,3771.0,3770.1,1.29789222]
[1717031904325,2.0,3771.0,3770.3,2.65225]
[1717031904513,2.0,3771.0,3770.4,1.29789222]
[1717031904714,2.0,3771.0,3770.5,0.39501422]
[1717031904899,2.0,3771.0,3770.6,1.29789222]
[1717031907100,2.0,3771.0,3770.5,0.39501422]
[1717031907842,2.0,3771.0,3769.8,2.65261]
[1717031908068,2.0,3771.0,3769.9,1.29789222]
[1717031908244,2.0,3771.0,3770.0,2.65245]
[1717031908428,2.0,3771.0,3770.2,2.65237]
[1717031908757,2.0,3771.0,3770.3,1.29789222]
[1717031909051,2.0,3771.0,3770.4,0.39502622]
[1717031909211,2.0,3771.0,3770.4,1.69291844]
[1717031911655,0.0232619,3770.9,3770.5,3.95002222]
[1717031917355,0.0232619,3770.9,3770.6,1.857]
[1717031917556,0.0232619,3770.9,3770.7,1.29789222]
[1717031917870,0.0232619,3770.9,3770.8,0.58070222]
[1717031926358,0.0232619,3770.9,3770.8,1.38370222]
[1717031927166,0.0232619,3770.9,3770.8,0.58070222]
[1717031927378,0.0232619,3770.9,3770.5,3.45513]
[1717031927582,0.0232619,3770.9,3770.5,4.75302222]
[1717031928490,0.0232619,3770.9,3770.7,0.803]
[1717031935601,0.0232619,3770.9,3770.5,1.29789222]
[1717031935780,0.0232619,3770.9,3770.6,0.803]
[1717031935975,0.0232619,3770.9,3770.6,1.05259184]
[1717031937765,0.0232619,3770.9,3770.6,2.35048406]
[1717031937966,0.0232619,3770.9,3770.8,0.803]
[1717031939107,0.0232619,3770.9,3770.6,1.54748406]
[1717031939308,0.0232619,3770.9,3770.7,1.29789222]
[1717031940318,0.0232619,3770.9,3770.6,1.05259184]
[1717031940483,2.6751519,3770.9,3770.1,7.14456594]
[1717031940687,2.2791,3770.5,3770.1,7.14456594]
[1717031940884,2.65232,3770.3,3770.1,7.14456594]
[1717031941086,3.22622938,3770.3,3769.3,7.14456594]
[1717031941286,3.22622938,3770.3,3769.4,4.37941175]
[1717031941486,2.65247,3770.1,3769.4,2.10089222]
[1717031941681,3.22637938,3770.1,3769.4,2.10089222]
[1717031941909,0.02387168,3770.0,3769.4,2.10089222]
[1717031942104,0.59778106,3770.0,3769.4,2.10089222]
[1717031942617,0.02387168,3770.0,3769.4,2.10089222]
[1717031942777,0.02387168,3770.0,3769.5,0.53815216]
[1717031942977,0.02387168,3770.0,3769.5,1.83604438]
[1717031943812,2.65276,3769.7,3769.1,0.803]
[1717031944016,2.65276,3769.7,3769.1,2.10089222]
[1717031944199,0.02375274,3769.6,3769.1,2.10089222]
[1717031944710,2.65289,3769.5,3768.6,7.14456594]
[1717031944873,2.65289,3769.5,3768.7,2.45730785]
[1717031945072,3.2944,3769.8,3768.4,0.803]
[1717031945073,2.65318,3769.1,3768.4,0.803]
[1717031945274,2.65318,3769.1,3768.4,1.29789222]
[1717031945493,2.65318,3769.1,3768.4,0.803]
[1717031945494,0.02360775,3769.0,3768.4,0.803]
[1717031946313,0.02360775,3769.0,3768.1,2.65385]
[1717031946491,0.02360775,3769.0,3768.2,1.29789222]
[1717031946693,2.65318,3769.1,3768.3,0.69517422]
[1717031946902,2.65318,3769.1,3768.3,1.99306644]
[1717031950992,2.65288,3769.5,3768.4,1.29789222]
[1717031952485,2.4914,3769.8,3768.4,3.95149222]
[1717031952685,2.4914,3769.8,3768.6,3.787]
[1717031952886,2.4914,3769.8,3769.0,2.65317]
[1717031953090,2.4914,3769.8,3769.1,1.29789222]
[1717031954143,2.3897,3770.2,3769.2,2.65308]
[1717031954359,4.90356,3770.7,3769.4,2.65293]
[1717031954567,4.90356,3770.7,3769.6,2.65274]
[1717031954696,4.90356,3770.7,3769.7,1.29789222]
[1717031957943,0.02334375,3770.6,3769.8,2.65265]
[1717031958123,0.02334375,3770.6,3769.9,1.29789222]
[1717031958297,0.02334375,3770.6,3770.0,0.39505422]
[1717031958501,0.02334375,3770.6,3770.1,1.29789222]
[1717031963915,0.02334375,3770.6,3769.6,2.65279]
[1717031964108,0.02334375,3770.6,3769.7,1.29789222]
[1717031964427,2.65206,3770.7,3769.7,1.29789222]
[1717031964624,2.65206,3770.7,3769.8,1.10952482]
[1717031964826,2.65206,3770.7,3769.9,1.29789222]
[1717031965025,0.0238791,3770.6,3769.9,1.29789222]
[1717031966957,2.25,3770.4,3769.5,7.14456594]
[1717031967166,2.65235,3770.3,3769.5,8.44245816]
[1717031967366,2.65235,3770.3,3769.5,1.29789222]
[1717031967565,0.0238791,3770.2,3769.5,1.29789222]
[1717031968771,2.65249,3770.1,3769.5,1.29789222]
[1717031969235,0.02341076,3770.0,3769.5,1.29789222]
[1717031969440,0.37140084,3770.0,3768.4,7.14456594]
[1717031969631,0.37140084,3770.0,3768.3,2.65365]
[1717031969632,2.2874,3769.5,3768.6,1.29789222]
[1717031969986,0.02339589,3769.4,3768.6,2.10189222]
[1717031970283,0.02339589,3769.4,3768.8,0.804]
[1717031970424,0.02339589,3769.4,3768.8,0.25665589]
[1717031970877,2.474,3770.0,3768.8,0.25665589]
[1717031971087,0.02339589,3769.3,3768.8,0.25665589]
[1717031971243,2.6529,3769.5,3768.8,0.25665589]
[1717031971427,0.02339589,3769.2,3768.8,0.25665589]
[1717031971629,2.6529,3769.5,3768.8,0.25665589]
[1717031972262,0.02325461,3769.4,3768.8,0.25665589]
[1717031972573,0.02325461,3769.4,3768.9,1.29789222]
[1717031972773,2.65263,3769.9,3769.0,3.07400381]
[1717031972930,0.0232732,3769.8,3769.1,1.29789222]
[1717031974144,0.0232732,3769.8,3769.2,2.65307]
[1717031974329,2.65235,3770.3,3769.3,1.29789222]
[1717031974532,0.02328808,3770.2,3769.3,1.29789222]
[1717031974868,0.02328808,3770.2,3769.4,0.58079622]
[1717031975029,0.02328808,3770.2,3769.5,1.29789222]
[1717031987979,0.02328808,3770.2,3769.5,3.95074222]
[1717031988150,2.65235,3770.3,3769.5,3.95074222]
[1717031988357,0.02354087,3770.2,3769.5,3.95074222]
[1717031988589,0.02354087,3770.2,3769.6,0.45315384]
[1717031988751,2.65235,3770.3,3769.7,1.29789222]
[1717031988953,0.02362265,3770.2,3769.7,1.29789222]
[1717031992992,2.65245,3770.1,3769.4,0.58079622]
[1717031993200,0.02361895,3770.0,3769.4,1.29789222]
[1717031993496,0.59767728,3770.0,3769.4,1.29789222]
[1717031993798,2.6526,3769.9,3769.4,1.29789222]
[1717031994099,2.6526,3769.9,3769.3,0.804]
[1717031994273,0.02361895,3769.8,3769.3,2.10189222]
[1717031996085,0.02361895,3769.8,3769.3,2.61947982]
[1717031996490,0.02361895,3769.8,3769.5,0.804]
[1717031999116,0.02361895,3769.8,3769.6,1.29789222]
[1717031999279,0.02361895,3769.8,3769.7,0.804]
[1717031999487,2.65237,3770.3,3769.7,0.804]
[1717031999713,0.02357435,3769.8,3769.7,0.804]
[1717031999880,0.57400282,3770.2,3769.7,1.01418922]
[1717032000080,0.02357435,3769.8,3769.7,0.804]
[1717032000281,0.57400282,3770.2,3769.7,0.804]
[1717032000495,0.02357435,3769.8,3769.7,0.804]
[1717032000999,0.57400877,3770.2,3769.7,0.804]
[1717032001212,0.02357435,3770.1,3769.7,0.804]
[1717032001729,0.57400877,3770.2,3769.7,0.804]
[1717032001936,2.65237,3770.3,3769.7,0.804]
[1717032001937,0.02357435,3770.0,3769.7,0.804]
[1717032002139,0.57400877,3770.2,3769.7,1.01418922]
[1717032002601,0.02357435,3770.1,3769.7,1.01418922]
[1717032002796,0.57400877,3770.2,3769.7,2.31208144]
[1717032003105,0.02357435,3770.1,3769.9,0.804]
[1717032003531,2.3017,3770.5,3769.9,0.804]
[1717032003739,0.02363382,3770.0,3769.9,0.804]
[1717032004039,0.02363382,3770.0,3769.9,1.30048414]
[1717032004240,0.57400877,3770.4,3769.9,1.30048414]
[1717032004442,0.02363382,3770.3,3769.9,0.804]
[1717032004639,2.87570877,3770.5,3769.9,0.804]
[1717032004802,0.02363382,3770.4,3769.9,0.804]
[1717032005945,0.02363382,3770.4,3769.8,1.29789222]
[1717032006239,2.67587382,3770.4,3769.8,2.10189222]
[1717032006604,0.57400877,3770.3,3769.8,2.10189222]
[1717032006804,0.02366355,3770.2,3769.8,2.10189222]
[1717032007017,0.57400877,3770.3,3769.8,2.10189222]
[1717032007217,0.02366355,3770.2,3769.8,2.10189222]
[1717032007441,0.57400877,3770.3,3769.8,2.10189222]
[1717032007645,0.02366355,3770.2,3769.8,2.10189222]
[1717032007944,2.65224,3770.4,3769.8,2.76305744]
[1717032008157,0.02366355,3770.1,3769.8,2.10189222]
[1717032008355,2.65224,3770.4,3769.8,2.10189222]
[1717032008654,3.22621906,3770.4,3769.8,2.10189222]
[1717032008806,0.02366355,3770.3,3769.8,2.10189222]
[1717032011438,0.02366355,3770.3,3769.8,1.29789222]
[1717032011834,0.02366355,3770.3,3769.8,2.10189222]
[1717032014067,0.02366355,3770.3,3770.2,2.65237]
[1717032014285,0.02366355,3770.3,3770.2,5.80726222]
[1717032014477,0.57396706,3771.1,3770.2,5.80726222]
[1717032014679,0.57396706,3771.1,3770.6,0.804]
[1717032014975,0.0237899,3770.9,3770.2,2.65237]
[1717032015162,0.0237899,3770.9,3770.3,2.10189222]
[1717032015366,0.0237899,3770.9,3770.3,2.57731844]
[1717032016394,4.9771999,3770.9,3770.1,0.804]
[1717032017078,2.6756999,3770.9,3770.3,0.804]
[1717032017427,0.0237899,3770.9,3770.5,0.804]
[1717032017578,0.0237899,3770.9,3770.5,2.10189222]
[1717032017887,0.0237899,3770.9,3770.6,1.29789222]
[1717032018091,0.0237899,3770.9,3770.6,1.87860844]
[1717032019911,0.0237899,3770.9,3770.6,2.68260844]
[1717032020115,0.0237899,3770.9,3770.3,2.65227]
[1717032020415,0.0237899,3770.9,3770.6,0.804]
[1717032020735,0.0237899,3770.9,3770.8,0.804]
[1717032020919,0.0237899,3770.9,3770.7,1.29789222]
[1717032021816,0.0237899,3770.9,3769.9,2.65253]
[1717032022017,0.0237899,3770.9,3770.2,0.804]
[1717032022218,0.0237899,3770.9,3770.3,1.29789222]
[1717032022715,0.0237899,3770.9,3770.0,3.450953]
[1717032022716,2.65196,3770.8,3770.0,0.450953]
[1717032022921,2.65196,3770.8,3770.1,1.29789222]
[1717032023079,2.0,3771.0,3769.5,10.14456594]
[1717032023080,2.6521,3770.6,3769.5,9.79738594]
[1717032023278,2.65233,3770.3,3769.6,1.29789222]
[1717032023516,0.02413181,3770.2,3769.6,1.29789222]
[1717032024656,2.65252,3770.0,3769.1,2.65311]
[1717032024955,2.65252,3770.0,3768.9,7.14456594]
[1717032024956,2.65277,3769.7,3768.9,7.14456594]
[1717032025247,2.65277,3769.7,3769.0,0.804]
[1717032025446,2.65277,3769.7,3768.6,2.65343]
[1717032025447,0.02348886,3769.6,3768.6,2.65343]
[1717032025652,0.02348886,3769.6,3768.9,0.804]
[1717032026947,2.65287,3769.5,3768.9,0.804]
[1717032027115,2.65287,3769.5,3768.7,2.10189222]
[1717032027310,2.4938,3769.4,3768.7,2.10189222]
[1717032027560,2.65304,3769.3,3768.6,0.804]
[1717032027762,2.65304,3769.3,3768.4,3.804]
[1717032027972,2.65304,3769.3,3767.8,9.79860594]
[1717032027973,4.05445058,3769.3,3767.8,9.79860594]
[1717032028124,2.65327,3769.0,3768.2,0.804]
[1717032028320,2.65327,3769.0,3768.2,2.10189222]
[1717032029261,2.65327,3769.0,3768.4,0.804]
[1717032029967,5.14675,3769.4,3768.6,0.804]
[1717032030167,5.14675,3769.4,3768.6,2.10189222]
[1717032031275,5.14675,3769.4,3768.8,0.804]
[1717032033188,2.65295,3769.4,3768.8,2.10189222]
[1717032033959,2.65295,3769.4,3768.6,0.21018922]
[1717032034190,2.65295,3769.4,3768.6,1.29789222]
[1717032034355,2.2617,3769.3,3768.6,1.29789222]
[1717032034695,3.45716,3769.1,3768.1,0.804]
[1717032034897,3.45716,3769.1,3768.0,0.804]
[1717032034898,2.3224,3768.7,3768.0,0.804]
[1717032035898,2.3224,3768.7,3767.9,0.804]
[1717032036249,2.3224,3768.7,3767.6,9.79876594]
[1717032036454,2.3224,3768.7,3767.7,2.76346881]
[1717032042796,2.3224,3768.7,3767.8,2.65406]
[1717032043123,2.3224,3768.7,3767.9,1.29789222]
[1717032044831,12.03246,3770.1,3767.9,1.29789222]
[1717032044832,2.4615,3769.1,3768.0,2.65387]
[1717032045034,2.4615,3769.1,3768.1,1.29789222]
[1717032045238,2.4615,3769.1,3768.2,0.39517622]
[1717032045411,2.4615,3769.1,3768.3,1.29789222]
[1717032047900,2.4615,3769.1,3768.3,3.95155222]
[1717032048095,2.3532,3769.5,3768.3,3.95155222]
[1717032048827,2.65298,3769.4,3768.3,3.95155222]
[1717032049026,2.65319,3769.1,3768.3,3.95155222]
[1717032049345,2.65319,3769.1,3768.3,1.29789222]
[1717032049558,2.65319,3769.1,3767.9,2.65396]
[1717032049841,0.500618,3769.4,3767.9,1.29789222]
[1717032049842,2.3213,3768.7,3767.9,1.29789222]
[1717032050044,2.65354,3768.6,3767.9,1.29789222]
[1717032050342,2.65354,3768.6,3767.5,2.65426]
[1717032050542,2.65354,3768.6,3767.6,1.29789222]
[1717032054982,3.22782393,3768.6,3767.6,1.29789222]
[1717032055277,3.22782393,3768.6,3767.7,0.39521522]
[1717032055421,3.22782393,3768.6,3767.8,1.29789222]
[1717032058028,2.65354,3768.6,3767.8,1.29789222]
[1717032058496,2.65354,3768.6,3768.0,0.804]
[1717032058682,3.22781626,3768.6,3768.0,0.804]
[1717032059251,2.65354,3768.6,3768.0,0.804]
[1717032059862,3.2278177,3768.6,3768.0,0.804]
[1717032060392,2.65354,3768.6,3768.0,0.804]
[1717032060544,2.65354,3768.6,3767.8,1.29789222]
[1717032060748,2.65354,3768.6,3767.3,7.14456594]
[1717032060749,2.2692,3768.2,3767.3,7.14456594]
[1717032060951,2.2692,3768.2,3767.4,1.29789222]
[1717032061271,2.84353976,3768.2,3767.4,1.29789222]
[1717032062581,2.84353976,3768.2,3767.5,0.804]
[1717032062779,2.84353976,3768.2,3767.6,1.29789222]
[1717032062982,2.2692,3768.2,3767.6,1.29789222]
[1717032063499,2.2692,3768.2,3767.7,0.804]
[1717032063805,2.2692,3768.2,3767.7,2.10189222]
[1717032063970,0.57434537,3768.2,3767.9,0.804]
[1717032064169,2.65378,3768.3,3767.9,0.804]
[1717032066295,2.65378,3768.3,3767.7,1.29789222]
[1717032066595,2.65378,3768.3,3767.8,0.15080814]
[1717032068601,2.3652,3768.5,3767.9,1.29789222]
[1717032068767,2.0,3769.1,3767.9,1.29789222]
[1717032068768,0.57429725,3768.6,3767.9,1.29789222]
[1717032068968,2.4614,3768.8,3767.9,1.29789222]
[1717032070000,2.4614,3768.8,3767.9,3.95182222]
[1717032070157,2.4614,3768.8,3768.1,2.65384]
[1717032070359,0.57429725,3769.0,3768.2,1.29789222]
[1717032070675,0.57429725,3769.0,3768.3,2.6537]
[1717032070890,2.57420563,3769.1,3768.4,1.29789222]
[1717032071101,2.0,3769.1,3768.4,1.29789222]
[1717032071439,2.0,3769.1,3768.5,0.39515922]
[1717032071595,2.0,3769.1,3768.6,1.29789222]
[1717032074826,2.0,3769.1,3768.5,0.39515922]
[1717032075034,2.4243,3769.0,3768.0,0.41026304]
[1717032075331,2.65353,3768.6,3767.6,7.14456594]
[1717032075481,2.65353,3768.6,3767.7,1.29789222]
[1717032076694,0.57425007,3768.9,3767.8,2.65403]
[1717032076878,0.57425007,3768.9,3767.9,1.29789222]
[1717032077081,0.57425007,3768.9,3768.0,0.39519222]
[1717032077310,0.57425007,3768.9,3768.1,3.95171222]
[1717032077511,5.07755,3769.0,3768.1,1.29789222]
[1717032077936,2.65336,3768.8,3768.1,1.29789222]
[1717032082631,2.4243,3769.0,3768.1,1.29789222]
[1717032082814,2.4243,3769.0,3768.2,0.39517922]
[1717032083013,2.4243,3769.0,3768.3,1.29789222]
[1717032083941,2.0,3769.1,3768.3,1.29789222]
[1717032084126,2.57420176,3769.1,3768.3,3.95157222]
[1717032084328,2.0,3769.1,3768.3,3.95157222]
[1717032084556,2.0,3769.1,3768.5,2.65357]
[1717032084762,2.0,3769.1,3768.6,1.29789222]
[1717032090339,2.0,3769.1,3768.8,0.804]
[1717032092578,2.0,3769.1,3768.8,2.10189222]
[1717032093339,2.0,3769.1,3769.0,0.804]
[1717032094276,2.0,3769.1,3769.0,2.31208144]
[1717032098977,2.0,3769.1,3768.8,2.65333]
[1717032099163,2.0,3769.1,3768.8,3.45733]
[1717032099372,2.0,3769.1,3768.4,3.08826514]
[1717032099580,2.0,3769.1,3768.6,0.804]
[1717032099831,2.0,3769.1,3768.4,2.65359]
[1717032099832,2.4917,3769.0,3768.4,2.65359]
[1717032100093,2.4917,3769.0,3767.6,1.857]
[1717032100094,2.65332,3768.9,3767.6,4.51116]
[1717032100301,2.65345,3768.7,3767.9,0.804]
[1717032100697,3.22770296,3768.7,3767.9,0.804]
[1717032101465,3.22770296,3768.7,3767.6,2.65416]
[1717032101706,2.65345,3768.7,3768.4,0.804]
[1717032102332,2.65345,3768.7,3767.8,4.51106]
[1717032102613,2.65345,3768.7,3767.9,2.07178744]
[1717032104591,2.65345,3768.7,3768.0,2.65392]
[1717032108902,2.4917,3768.8,3768.0,2.65392]
[1717032112004,2.4917,3768.8,3768.3,2.65371]
[1717032112203,0.57422862,3769.0,3768.4,1.29789222]
[1717032112411,3.15844286,3769.0,3767.9,3.42785522]
[1717032112716,2.4777,3768.9,3767.9,3.95185222]
[1717032112895,3.05194423,3768.9,3767.9,3.95185222]
[1717032113381,2.4777,3768.9,3767.9,3.95185222]
[1717032115936,2.4777,3768.9,3768.1,2.65382]
[1717032116147,2.4777,3768.9,3768.3,2.65369]
[1717032116313,2.4777,3768.9,3768.4,1.29789222]
[1717032117918,2.0,3769.1,3768.5,2.65354]
[1717032118240,2.0,3769.1,3768.6,1.29789222]
[1717032119634,2.0,3769.1,3768.5,2.65354]
[1717032119841,2.0,3769.1,3768.5,3.95143222]
[1717032120046,2.0,3769.1,3768.5,4.38609256]
[1717032122867,2.0,3769.1,3768.6,1.29789222]
[1717032124379,2.0,3769.1,3768.9,0.804]
[1717032128552,2.0,3769.1,3768.7,0.804]
[1717032128753,2.0,3769.1,3768.8,1.29789222]
[1717032133742,2.0,3769.1,3768.5,3.08820034]
[1717032133906,2.0,3769.1,3768.7,0.804]
[1717032134218,2.0,3769.1,3768.7,2.10189222]
[1717032134895,2.0,3769.1,3768.3,7.14456594]
[1717032135101,2.0,3769.1,3768.7,0.804]
[1717032135305,2.0,3769.1,3768.8,1.29789222]
[1717032135505,2.0,3769.1,3768.8,1.50808144]
[1717032137191,2.0,3769.1,3768.9,0.804]
[1717032141210,2.0,3769.1,3768.8,1.29789222]
[1717032142179,2.0,3769.1,3768.7,0.804]
[1717032142371,2.3708,3768.9,3768.3,7.14456594]
[1717032142835,2.6534,3768.8,3768.3,7.14456594]
[1717032143040,2.3708,3768.7,3768.3,7.14456594]
[1717032143251,2.94505391,3768.7,3768.3,7.14456594]
[1717032146084,2.94505391,3768.7,3767.9,0.804]
[1717032146301,2.94505391,3768.7,3768.0,1.29789222]
[1717032146850,2.3708,3768.7,3768.0,1.29789222]
[1717032150198,2.0,3768.4,3768.0,1.29789222]
[1717032151572,2.0,3768.4,3768.1,0.804]
[1717032153509,2.0,3768.4,3768.0,1.29789222]
[1717032153510,2.0,3768.4,3768.3,0.804]
[1717032153713,2.0,3768.4,3768.3,1.01418922]
[1717032153908,2.0,3768.4,3768.3,2.31208144]
[1717032154497,2.0,3768.4,3767.9,2.65395]
[1717032154698,2.0,3768.4,3768.0,2.10189222]